bitfinex/quotes_SOLUSD_20241223
["timestamp","ask_amount","ask_price","bid_price","bid_amount"]
[1734964543648,0.12549,183.95,183.82,33.27351278]
[1734964543803,0.12549,183.93,183.8,33.27351278]
[1734964544524,6.56859,183.92,183.78,33.27351278]
[1734964544703,0.69995553,183.91,183.8,33.27351278]
[1734964545523,6.4431,183.92,183.82,33.27351278]
[1734964545831,0.69995553,183.91,183.82,33.27351278]
[1734964546131,0.12549,183.94,183.84,33.27351278]
[1734964546344,0.69995553,183.94,183.84,33.27351278]
[1734964546571,6.3062,183.98,183.86,33.27351278]
[1734964546704,0.69995553,183.97,183.86,33.27351278]
[1734964547216,0.12549,183.96,183.84,33.27351278]
[1734964547641,0.12549,183.94,183.82,33.27351278]
[1734964547805,0.12549,183.94,183.85,20.0]
[1734964548528,0.12549,183.94,183.84,33.27351278]
[1734964550019,20.69995553,183.95,183.82,53.27351278]
[1734964550342,0.12549,183.94,183.84,33.27351278]
[1734964550550,0.12549,183.92,183.79,33.27351278]
[1734964550760,21.3591,183.95,183.77,33.27351278]
[1734964550761,0.12549,183.9,183.77,33.27351278]
[1734964551066,0.12549,183.9,183.79,33.27351278]
[1734964551262,0.12549,183.93,183.81,33.27351278]
[1734964551565,6.3062,183.98,183.87,33.27351278]
[1734964551850,6.3062,183.98,183.91,33.27351278]
[1734964552059,6.592,184.03,183.93,33.27351278]
[1734964552222,6.592,184.03,183.95,20.45249916]
[1734964552421,6.592,184.03,183.97,20.45249916]
[1734964552832,0.69995553,184.07,183.97,20.45249916]
[1734964553035,0.69995553,184.07,184.0,20.45249916]
[1734964553245,0.69995553,184.07,183.99,20.45249916]
[1734964553840,0.69995553,184.09,183.99,20.45249916]
[1734964554155,0.69995553,184.09,183.99,33.22019996]
[1734964555540,7.2724613,184.1,184.0,33.22019996]
[1734964555541,7.97241683,184.1,184.0,33.22019996]
[1734964555733,0.69995553,184.09,183.9,0.81487156]
[1734964555940,0.12549,184.08,183.92,33.22019996]
[1734964556164,0.12549,184.06,183.92,33.22019996]
[1734964556459,0.69995553,184.05,183.92,33.22019996]
[1734964556656,0.69995553,184.08,183.92,33.22019996]
[1734964557038,20.12549,184.07,183.92,33.22019996]
[1734964557245,0.12549,184.05,183.92,33.22019996]
[1734964557541,0.12549,184.03,183.92,33.22019996]
[1734964558243,0.69995553,184.09,183.98,33.22019996]
[1734964559371,7.2724613,184.1,183.98,33.22019996]
[1734964559530,20.0,184.07,184.0,33.22019996]
[1734964559735,20.0,184.07,183.99,33.22019996]
[1734964560043,0.69995553,184.09,183.99,33.22019996]
[1734964560548,7.2724613,184.1,183.99,33.22019996]
[1734964560750,0.69995553,184.09,183.99,33.22019996]
[1734964561063,7.2724613,184.1,183.99,33.22019996]
[1734964561362,20.0,184.07,183.99,33.22019996]
[1734964561545,7.2724613,184.1,184.01,33.22019996]
[1734964561743,0.6753613,184.1,184.02,0.12549]
[1734964561943,0.6753613,184.1,184.01,33.22019996]
[1734964561944,0.6753613,184.1,184.05,33.22019996]
[1734964562366,0.6753613,184.1,184.07,33.22019996]
[1734964563335,0.6753613,184.1,184.04,33.22019996]
[1734964563540,0.6753613,184.1,184.02,33.22019996]
[1734964563765,0.6753613,184.1,184.03,33.22019996]
[1734964563968,0.6753613,184.1,184.0,33.22019996]
[1734964564148,0.6753613,184.1,184.01,33.22019996]
[1734964564863,0.6753613,184.1,184.04,33.22019996]
[1734964565036,0.6753613,184.1,184.05,0.81468931]
[1734964565380,0.6753613,184.1,184.04,33.22019996]
[1734964567370,0.6753613,184.1,184.06,33.22019996]
[1734964567574,0.6753613,184.1,184.08,33.22019996]
[1734964567750,0.6753613,184.1,184.06,33.22019996]
[1734964568664,0.6753613,184.1,184.04,33.22019996]
[1734964568851,0.6753613,184.1,184.0,33.22019996]
[1734964569051,0.69995553,184.09,183.98,1.636]
[1734964569369,0.6753613,184.1,183.99,33.22019996]
[1734964569669,0.6753613,184.1,184.03,33.22019996]
[1734964570046,0.6753613,184.1,184.07,33.22019996]
[1734964570267,0.6753613,184.1,184.09,33.22019996]
[1734964570467,0.6753613,184.1,184.08,0.81451816]
[1734964570661,0.6753613,184.1,184.07,33.22019996]
[1734964570862,0.6753613,184.1,184.05,34.83369996]
[1734964571060,0.6753613,184.1,184.03,33.22019996]
[1734964571778,0.6753613,184.1,184.01,33.22019996]
[1734964572165,0.6753613,184.1,183.96,13.5896]
[1734964572368,20.0,184.05,183.94,33.22019996]
[1734964572568,0.69995553,184.04,183.91,33.22019996]
[1734964572867,1.48389,184.03,183.88,33.22019996]
[1734964573076,0.69995553,184.02,183.88,33.22019996]
[1734964573282,0.69995553,184.02,183.9,33.22019996]
[1734964573786,0.69995553,184.02,183.91,0.81534246]
[1734964573951,0.69995553,184.02,183.9,34.03548685]
[1734964574151,20.0,184.05,183.94,33.22019996]
[1734964574152,0.69995553,184.04,183.94,33.22019996]
[1734964574485,0.69995553,184.03,183.94,33.22019996]
[1734964574690,20.69995553,184.05,183.94,33.22019996]
[1734964574844,20.0,184.05,183.96,33.22019996]
[1734964575049,20.0,184.05,183.97,33.22019996]
[1734964575347,20.0,184.05,183.97,34.03517147]
[1734964575554,20.0,184.05,183.97,33.22019996]
[1734964576296,20.0,184.05,183.87,162.12019996]
[1734964576297,0.69995553,184.04,183.93,20.44667358]
[1734964576624,0.69995553,184.04,183.91,20.44667358]
[1734964576986,1.48389,184.03,183.91,20.44667358]
[1734964577293,0.69995553,184.02,183.9,20.44667358]
[1734964577868,0.12549,183.96,183.86,0.81535919]
[1734964578074,0.82544553,183.96,183.82,20.44667358]
[1734964578578,0.12549,183.94,183.78,20.44667358]
[1734964578798,0.82544553,183.94,183.78,20.44667358]
[1734964579258,0.82544553,183.94,183.8,20.44667358]
[1734964579591,0.82544553,183.94,183.82,20.44667358]
[1734964580289,0.69995553,183.94,183.84,33.27839894]
[1734964580508,0.69995553,183.95,183.84,33.27839894]
[1734964580671,20.0,183.97,183.86,33.27839894]
[1734964580873,0.69995553,183.96,183.86,33.27839894]
[1734964581068,0.12549,183.98,183.88,33.27839894]
[1734964581274,0.69995553,183.97,183.86,33.27839894]
[1734964581782,6.3434,184.0,183.92,33.27839894]
[1734964581992,25.04414097,184.13,183.89,0.12549]
[1734964581993,6.1447,184.06,183.94,33.27839894]
[1734964582180,0.69995553,184.05,183.94,33.27839894]
[1734964582384,6.1447,184.06,183.98,33.27839894]
[1734964582777,0.6753613,184.1,183.98,33.27839894]
[1734964583001,0.6753613,184.1,184.02,33.27839894]
[1734964583191,2.05795553,184.09,183.94,34.09322998]
[1734964583485,0.12549,184.08,183.91,34.83399894]
[1734964583682,0.12549,184.06,183.91,33.27839894]
[1734964583910,0.12549,184.04,183.91,33.27839894]
[1734964584077,0.12549,184.02,183.89,33.27839894]
[1734964584274,0.12549,183.98,183.85,1.5724]
[1734964584494,0.12549,183.95,183.81,33.27839894]
[1734964584699,2.18444553,183.95,183.83,33.27839894]
[1734964587410,2.18444553,183.95,183.81,33.27839894]
[1734964587775,2.18444553,183.95,183.79,33.27839894]
[1734964588002,2.18444553,183.95,183.81,33.27839894]
[1734964588185,2.05895553,183.95,183.83,33.27839894]
[1734964589301,0.12549,183.94,183.83,33.27839894]
[1734964589506,0.12549,183.92,183.79,33.27839894]
[1734964589682,0.12549,183.92,183.77,33.27839894]
[1734964589683,0.12549,183.9,183.77,33.27839894]
[1734964589884,0.12549,183.88,183.75,33.27839894]
[1734964590303,0.12549,183.88,183.77,33.27839894]
[1734964590495,1.3592,183.93,183.77,33.27839894]
[1734964590496,0.69995553,183.92,183.77,33.27839894]
[1734964591121,20.69995553,183.92,183.77,33.27839894]
[1734964591301,0.12549,183.91,183.77,33.27839894]
[1734964591930,1.48489,183.91,183.77,33.27839894]
[1734964592095,0.12549,183.89,183.77,33.27839894]
[1734964593324,0.12549,183.84,183.73,33.27839894]
[1734964593617,0.82544553,183.84,183.69,33.27839894]
[1734964594304,0.82544553,183.84,183.71,33.27839894]
[1734964594709,0.12549,183.82,183.69,33.27839894]
[1734964594902,0.82544553,183.82,183.67,33.27839894]
[1734964595302,0.82544553,183.82,183.62,44.83514429]
[1734964595303,0.82544553,183.82,183.69,33.27839894]
[1734964595518,0.82544553,183.82,183.71,33.27839894]
[1734964595729,20.0,183.84,183.73,33.27839894]
[1734964595909,3.25383387,183.86,183.75,33.27839894]
[1734964595910,20.0,183.85,183.75,33.27839894]
[1734964596116,0.69995553,183.86,183.75,33.27839894]
[1734964597138,0.69995553,183.86,183.73,33.27839894]
[1734964597305,0.12549,183.85,183.73,33.27839894]
[1734964598320,20.12549,183.85,183.73,33.27839894]
[1734964598630,0.69995553,183.84,183.73,33.27839894]
[1734964598807,0.12549,183.83,183.73,33.27839894]
[1734964599007,0.12549,183.83,183.71,33.27839894]
[1734964599509,0.12549,183.83,183.69,33.27839894]
[1734964599923,0.12549,183.81,183.69,33.27839894]
[1734964600136,0.82544553,183.81,183.69,33.27839894]
[1734964600347,0.82544553,183.81,183.6,164.39039997]
[1734964600348,0.82544553,183.81,183.67,33.27839894]
[1734964600703,0.82544553,183.81,183.69,33.27839894]
[1734964601312,0.12549,183.79,183.67,33.27839894]
[1734964601642,0.82544553,183.79,183.67,33.27839894]
[1734964602239,0.69995553,183.79,183.69,33.27839894]
[1734964602842,0.12549,183.78,183.69,33.27839894]
[1734964603211,0.69995553,183.79,183.69,33.27839894]
[1734964603618,2.18534553,183.83,183.69,33.27839894]
[1734964604112,4.90524553,183.83,183.69,33.27839894]
[1734964604414,4.90524553,183.83,183.67,33.27839894]
[1734964606040,4.90524553,183.83,183.65,53.27839894]
[1734964606240,20.12549,183.79,183.65,53.27839894]
[1734964606439,0.12549,183.77,183.65,53.27839894]
[1734964606749,0.12549,183.75,183.63,33.27839894]
[1734964606956,0.12549,183.73,183.61,33.27839894]
[1734964607123,0.12549,183.69,183.58,33.27839894]
[1734964607321,0.82544553,183.69,183.58,33.27839894]
[1734964607534,0.69995553,183.69,183.61,33.27839894]
[1734964607733,20.0,183.7,183.63,33.27839894]
[1734964607934,6.1131,183.73,183.65,33.27839894]
[1734964608251,6.1131,183.73,183.68,33.27839894]
[1734964608544,6.1131,183.73,183.67,33.27839894]
[1734964608848,6.1131,183.78,183.7,33.27839894]
[1734964609152,0.69995553,183.77,183.69,33.27839894]
[1734964609526,0.12549,183.76,183.63,33.27839894]
[1734964609734,6.1131,183.78,183.63,33.27839894]
[1734964609735,0.69995553,183.75,183.63,33.27839894]
[1734964610054,0.69995553,183.77,183.66,33.27839894]
[1734964610241,0.69995553,183.77,183.67,33.27839894]
[1734964610647,20.0,183.75,183.66,33.27839894]
[1734964610951,20.0,183.75,183.61,0.12549]
[1734964610952,0.12549,183.73,183.61,33.27839894]
[1734964611123,0.12549,183.71,183.58,33.27839894]
[1734964611457,0.12549,183.64,183.53,34.93249894]
[1734964611657,0.82544553,183.64,183.52,33.27839894]
[1734964612332,0.82544553,183.64,183.54,43.27839894]
[1734964612669,20.0,183.65,183.56,33.27839894]
[1734964612868,1.3609,183.69,183.54,10.0]
[1734964612869,20.0,183.72,183.63,33.27839894]
[1734964613070,0.69995553,183.75,183.7,33.27839894]
[1734964613230,0.69995553,183.82,183.74,33.27839894]
[1734964614130,0.69995553,183.82,183.72,33.27839894]
[1734964614337,0.12549,183.81,183.72,33.27839894]
[1734964614552,0.12549,183.79,183.7,33.27839894]
[1734964614760,0.82544553,183.79,183.7,33.27839894]
[1734964615338,0.82544553,183.79,183.68,33.27839894]
[1734964616927,1.3603,183.78,183.61,14.43190677]
[1734964617132,0.82544553,183.77,183.62,33.27839894]
[1734964617739,0.82544553,183.77,183.64,33.27839894]
[1734964618050,0.82544553,183.77,183.68,33.27839894]
[1734964618249,0.12549,183.78,183.66,20.51163358]
[1734964618459,0.69995553,183.77,183.66,20.51163358]
[1734964618662,0.69995553,183.79,183.68,20.51163358]
[1734964618833,0.69995553,183.81,183.72,20.51163358]
[1734964619860,0.69995553,183.82,183.72,20.51163358]
[1734964620165,0.69995553,183.82,183.7,20.51163358]
[1734964620348,0.69995553,183.82,183.72,20.51163358]
[1734964620870,6.2572,183.83,183.72,20.51163358]
[1734964621036,0.69995553,183.82,183.72,20.51163358]
[1734964621239,6.2572,183.83,183.74,20.51163358]
[1734964622462,0.69995553,183.86,183.76,20.51163358]
[1734964622631,0.69995553,183.86,183.74,40.51163358]
[1734964622830,0.12549,183.85,183.74,20.51163358]
[1734964623261,0.12549,183.85,183.68,20.0]
[1734964623448,0.12549,183.83,183.71,20.51163358]
[1734964623643,0.69995553,183.84,183.75,20.51163358]
[1734964623841,20.0,183.85,183.77,20.51163358]
[1734964624043,0.69995553,183.84,183.73,20.51163358]
[1734964624242,0.12549,183.83,183.69,20.51163358]
[1734964624450,0.69995553,183.82,183.69,20.51163358]
[1734964624647,0.12549,183.81,183.67,20.51163358]
[1734964625159,0.12549,183.81,183.69,20.51163358]
[1734964625349,1.3598,183.84,183.65,0.81639813]
[1734964625350,0.69995553,183.83,183.71,20.51163358]
[1734964626248,0.69995553,183.83,183.73,20.51163358]
[1734964626566,0.69995553,183.83,183.71,20.51163358]
[1734964627063,0.69995553,183.84,183.75,20.51163358]
[1734964627262,7.7314,183.88,183.79,20.51163358]
[1734964627263,6.3718,183.88,183.79,20.51163358]
[1734964627759,0.82544553,183.87,183.75,20.51163358]
[1734964627970,0.69995553,183.87,183.75,20.51163358]
[1734964628165,0.69995553,183.87,183.74,33.30998668]
[1734964628552,2.05955553,183.87,183.76,33.30998668]
[1734964628751,2.05955553,183.87,183.77,33.30998668]
[1734964628946,20.0,183.85,183.75,33.30998668]
[1734964629250,20.0,183.85,183.7,33.30998668]
[1734964629251,0.12549,183.83,183.7,33.30998668]
[1734964631369,0.12549,183.78,183.64,33.30998668]
[1734964631573,0.82544553,183.78,183.64,33.30998668]
[1734964632469,0.12549,183.73,183.62,33.30998668]
[1734964632651,6.3803,183.71,183.62,33.30998668]
[1734964632857,5.38025553,183.71,183.62,33.30998668]
[1734964633675,0.12549,183.7,183.62,33.30998668]
[1734964634380,20.0,183.68,183.62,33.30998668]
[1734964634576,5.38025553,183.71,183.64,33.30998668]
[1734964634767,1.3605,183.76,183.65,33.30998668]
[1734964634948,1.3605,183.76,183.64,33.30998668]
[1734964635371,0.12549,183.75,183.65,33.30998668]
[1734964635673,0.12549,183.75,183.63,33.30998668]
[1734964635968,20.0,183.71,183.63,33.30998668]
[1734964636174,20.0,183.71,183.62,33.30998668]
[1734964636473,20.0,183.71,183.63,33.30998668]
[1734964637279,6.6647,183.81,183.7,33.30998668]
[1734964637650,20.0,183.78,183.7,33.30998668]
[1734964638476,20.0,183.78,183.69,33.30998668]
[1734964638675,20.0,183.78,183.71,33.30998668]
[1734964638866,6.6647,183.81,183.75,33.30998668]
[1734964639174,10.60966182,183.93,183.78,33.30998668]
[1734964639175,20.0,183.83,183.78,33.30998668]
[1734964639380,6.6647,183.87,183.79,33.30998668]
[1734964639956,26.6647,183.87,183.78,33.30998668]
[1734964640368,6.6647,183.87,183.78,33.30998668]
[1734964640574,6.6647,183.87,183.77,33.30998668]
[1734964640767,28.440152,183.87,183.76,34.12603419]
[1734964640955,28.440152,183.87,183.76,33.30998668]
[1734964641158,28.440152,183.87,183.74,53.30998668]
[1734964641361,28.440152,183.87,183.76,33.30998668]
[1734964641662,6.4686,183.92,183.78,33.30998668]
[1734964641867,6.4686,183.92,183.84,33.30998668]
[1734964642177,28.238158,183.92,183.81,33.30998668]
[1734964642490,0.12549,183.91,183.81,33.30998668]
[1734964642685,28.238158,183.92,183.83,33.30998668]
[1734964643182,28.238158,183.92,183.82,33.30998668]
[1734964643580,1.3587,183.99,183.86,33.30998668]
[1734964643761,6.182,184.0,183.89,33.30998668]
[1734964643965,21.762184,183.98,183.9,34.12532737]
[1734964644165,21.762184,183.98,183.9,0.81534069]
[1734964644382,21.762184,183.98,183.88,33.30998668]
[1734964644556,21.762184,183.98,183.89,0.815411]
[1734964644760,21.762184,183.98,183.89,34.12539768]
[1734964644955,7.5406,184.0,183.89,33.30998668]
[1734964645156,0.12549,183.96,183.84,33.30998668]
[1734964645866,0.12549,183.96,183.85,33.30998668]
[1734964646061,0.12549,183.96,183.82,2.41469922]
[1734964646062,20.0,183.97,183.86,34.12554111]
[1734964646263,20.0,183.97,183.88,33.30998668]
[1734964646463,40.0,183.97,183.89,34.12537945]
[1734964646688,6.182,184.0,183.91,33.30998668]
[1734964646889,0.12549,183.99,183.88,33.30998668]
[1734964647064,0.12549,183.96,183.84,33.30998668]
[1734964647671,21.76377,183.97,183.87,33.30998668]
[1734964648087,20.0,183.94,183.86,33.30998668]
[1734964648386,20.0,183.94,183.86,20.47153505]
[1734964648587,20.0,183.94,183.88,20.47153505]
[1734964648757,6.182,184.0,183.9,20.47153505]
[1734964648957,20.471535,183.98,183.89,20.47153505]
[1734964649263,20.471535,183.98,183.88,21.28689842]
[1734964650076,20.0,183.95,183.89,20.47153505]
[1734964650276,20.0,183.95,183.88,21.28691638]
[1734964650480,20.0,183.95,183.87,20.47153505]
[1734964651375,20.0,183.95,183.71,8.38765495]
[1734964651376,0.12549,183.94,183.79,0.81553277]
[1734964651576,0.12549,183.94,183.79,20.47153505]
[1734964651992,21.359,183.95,183.76,22.03943505]
[1734964651993,0.12549,183.89,183.76,22.03943505]
[1734964652163,0.12549,183.89,183.74,20.47153505]
[1734964652793,0.12549,183.85,183.7,22.03943505]
[1734964652972,0.12549,183.82,183.7,20.47153505]
[1734964653607,0.12549,183.82,183.66,20.47153505]
[1734964653764,0.12549,183.82,183.62,20.47153505]
[1734964654173,20.12549,183.82,183.62,20.47153505]
[1734964654371,6.3762,183.81,183.59,20.47153505]
[1734964654568,0.12549,183.77,183.57,20.47153505]
[1734964654777,0.12549,183.75,183.58,20.47153505]
[1734964655171,0.12549,183.75,183.56,1.5188]
[1734964655374,0.12549,183.75,183.54,20.47153505]
[1734964655884,0.12549,183.75,183.59,20.47153505]
[1734964656189,1.3604,183.76,183.63,33.34845733]
[1734964656876,1.3604,183.76,183.67,33.34845733]
[1734964657083,7.7363,183.81,183.59,20.0]
[1734964657387,0.12549,183.8,183.64,33.34845733]
[1734964658099,0.12549,183.78,183.62,33.34845733]
[1734964658268,20.12549,183.78,183.6,33.34845733]
[1734964658778,20.12549,183.78,183.61,33.34845733]
[1734964658982,20.12549,183.78,183.63,33.34845733]
[1734964659205,20.12549,183.78,183.64,33.34845733]
[1734964659392,0.12549,183.76,183.61,33.34845733]
[1734964659883,0.12549,183.76,183.59,33.34845733]
[1734964660402,0.12549,183.76,183.58,33.34845733]
[1734964660576,0.12549,183.76,183.59,33.34845733]
[1734964661191,0.12549,183.74,183.58,33.34845733]
[1734964662396,0.12549,183.74,183.54,33.34845733]
[1734964662971,0.12549,183.69,183.54,33.34845733]
[1734964663170,1.361,183.68,183.54,33.34845733]
[1734964663381,0.12549,183.67,183.52,33.34845733]
[1734964664502,0.12549,183.68,183.52,33.34845733]
[1734964664679,0.12549,183.65,183.52,33.34845733]
[1734964664887,0.12549,183.65,183.5,33.34845733]
[1734964665194,0.12549,183.65,183.48,33.34845733]
[1734964665697,0.12549,183.65,183.5,33.34845733]
[1734964665869,0.12549,183.65,183.52,33.34845733]
[1734964666310,20.12549,183.66,183.48,33.34845733]
[1734964666596,0.12549,183.61,183.48,33.34845733]
[1734964667300,1.48709,183.61,183.5,33.34845733]
[1734964668696,1.48709,183.61,183.52,33.34845733]
[1734964668906,1.48709,183.61,183.46,1.49265459]
[1734964668907,1.48709,183.61,183.48,33.34845733]
[1734964669110,1.48709,183.61,183.46,34.02381863]
[1734964669310,20.0,183.6,183.46,34.02381863]
[1734964669604,0.12549,183.59,183.46,34.02381863]
[1734964670105,20.0,183.58,183.46,0.6753613]
[1734964670403,0.12549,183.57,183.46,0.6753613]
[1734964670786,20.12549,183.57,183.46,0.6753613]
[1734964671115,0.12549,183.52,183.46,0.6753613]
[1734964671604,20.0,183.48,183.31,33.34845733]
[1734964671824,20.0,183.48,183.35,33.34845733]
[1734964672367,20.0,183.44,183.35,33.34845733]
[1734964672590,20.0,183.44,183.37,33.34845733]
[1734964673086,20.0,183.44,183.35,33.34845733]
[1734964673284,20.0,183.44,183.33,33.34845733]
[1734964673486,20.0,183.44,183.35,33.34845733]
[1734964673783,5.9912,183.47,183.35,33.34845733]
[1734964674401,5.9912,183.47,183.37,33.34845733]
[1734964674599,1.3623,183.51,183.37,33.34845733]
[1734964674799,20.0,183.5,183.37,34.16610936]
[1734964675007,0.12549,183.49,183.35,33.34845733]
[1734964675302,1.3625,183.48,183.35,33.34845733]
[1734964675478,1.3625,183.48,183.33,34.16619683]
[1734964675977,0.12549,183.47,183.31,33.34845733]
[1734964676182,20.12549,183.47,183.31,33.34845733]
[1734964676484,25.24990369,183.47,183.29,33.34845733]
[1734964676804,20.0,183.45,183.29,33.34845733]
[1734964676979,0.12549,183.42,183.29,33.34845733]
[1734964677194,20.0,183.38,183.28,0.6753613]
[1734964677696,20.0,183.38,183.28,34.02381863]
[1734964678199,6.1237,183.41,183.28,34.02381863]
[1734964678507,20.0,183.38,183.3,33.34845733]
[1734964678679,6.1237,183.41,183.3,33.34845733]
[1734964678881,20.0,183.43,183.32,33.34845733]
[1734964679099,20.0,183.43,183.33,0.81781665]
[1734964679692,20.0,183.43,183.34,33.34845733]
[1734964680093,1.3625,183.49,183.36,33.34845733]
[1734964680286,0.12549,183.48,183.34,20.58053112]
[1734964681775,20.0,183.47,183.34,20.58053112]
[1734964681971,20.0,183.47,183.3,21.39818134]
[1734964681972,6.0657,183.45,183.3,21.39818134]
[1734964682190,0.12549,183.41,183.28,21.25589242]
[1734964682383,20.0,183.42,183.29,0.81800754]
[1734964682586,20.0,183.42,183.28,0.6753613]
[1734964682792,20.0,183.42,183.28,22.07398401]
[1734964683000,0.12549,183.41,183.28,0.6753613]
[1734964683302,20.0,183.38,183.28,0.6753613]
[1734964683605,20.0,183.38,183.28,21.25589242]
[1734964683776,20.0,183.42,183.3,20.58053112]
[1734964683978,20.0,183.42,183.28,0.6753613]
[1734964683979,1.363,183.41,183.28,0.6753613]
[1734964684180,4.0891,183.41,183.28,0.6753613]
[1734964684388,0.12549,183.4,183.28,0.6753613]
[1734964685386,0.12549,183.33,183.28,0.6753613]
[1734964687278,1.48909,183.33,183.28,0.6753613]
[1734964687483,6.0657,183.37,183.28,0.6753613]
[1734964688019,6.3976,183.43,183.29,21.39885129]
[1734964688183,6.3976,183.43,183.31,20.58053112]
[1734964688706,6.3976,183.43,183.29,0.81832017]
[1734964688915,6.3976,183.43,183.29,20.58053112]
[1734964689486,7.7605,183.43,183.31,20.58053112]
[1734964689807,6.3976,183.43,183.33,20.58053112]
[1734964690007,6.563,183.49,183.39,20.58053112]
[1734964690193,6.563,183.49,183.37,20.58053112]
[1734964690509,7.9255,183.49,183.37,20.58053112]
[1734964690891,10.6504,183.49,183.32,20.58053112]
[1734964691097,0.12549,183.47,183.3,20.58053112]
[1734964691304,0.12549,183.44,183.3,21.39845089]
[1734964691490,1.3629,183.43,183.3,0.81791977]
[1734964691809,0.12549,183.42,183.28,21.25589242]
[1734964692186,0.12549,183.42,183.29,0.81806813]
[1734964692382,26.08296314,183.46,183.29,21.39859925]
[1734964692591,9.2879,183.49,183.3,0.12549]
[1734964692592,6.563,183.49,183.3,0.12549]
[1734964692809,6.3881,183.54,183.38,20.58053112]
[1734964693216,6.3881,183.54,183.39,0.81750573]
[1734964693718,1.3622,183.53,183.4,20.58053112]
[1734964694012,1.3622,183.53,183.41,0.81747121]
[1734964694895,1.3622,183.53,183.38,41.39799581]
[1734964695219,0.12549,183.52,183.38,0.81746469]
[1734964695424,0.12549,183.52,183.38,21.39799581]
[1734964695911,6.3881,183.54,183.4,20.58053112]
[1734964696097,0.12549,183.53,183.39,20.58053112]
[1734964696305,0.12549,183.53,183.38,35.03009581]
[1734964696497,0.12549,183.53,183.39,20.58053112]
[1734964696697,0.12549,183.53,183.4,21.39805969]
[1734964696896,8.1717,183.56,183.48,20.58053112]
[1734964697112,6.4581,183.59,183.5,20.58053112]
[1734964697317,7.8198,183.59,183.46,20.58053112]
[1734964697519,0.12549,183.58,183.45,20.58053112]
[1734964698423,7.8198,183.59,183.46,20.58053112]
[1734964698724,0.12549,183.58,183.44,22.16563112]
[1734964699299,0.12549,183.58,183.45,20.58053112]
[1734964699823,20.0,183.56,183.45,20.58053112]
[1734964700203,20.0,183.56,183.44,22.16563112]
[1734964700505,20.0,183.56,183.45,20.58053112]
[1734964700703,6.4581,183.59,183.45,14.57043645]
[1734964700900,6.4581,183.59,183.52,20.58053112]
[1734964701099,1.3614,183.63,183.5,20.58053112]
[1734964701320,0.12549,183.62,183.46,20.58053112]
[1734964701505,0.12549,183.62,183.44,22.16563112]
[1734964701708,0.12549,183.62,183.42,0.81705389]
[1734964701709,0.12549,183.62,183.42,20.58053112]
[1734964702004,5.25600519,183.61,183.46,20.58053112]
[1734964702298,0.12549,183.6,183.45,20.58053112]
[1734964702622,20.0,183.58,183.46,20.58053112]
[1734964703010,20.0,183.58,183.47,20.58053112]
[1734964703201,3.86712248,183.63,183.49,20.58053112]
[1734964703520,1.3614,183.63,183.49,20.58053112]
[1734964703702,1.3614,183.63,183.5,20.58053112]
[1734964704108,1.3614,183.63,183.5,21.3976315]
[1734964704314,1.3614,183.63,183.51,20.58053112]
[1734964704709,1.3614,183.63,183.5,21.3976315]
[1734964704915,1.3614,183.63,183.43,0.81701632]
[1734964705219,22.79491298,183.62,183.42,20.58053112]
[1734964705427,0.12549,183.6,183.42,20.58053112]
[1734964705605,20.0,183.58,183.43,20.58053112]
[1734964706202,0.12549,183.57,183.42,20.58053112]
[1734964706421,0.12549,183.55,183.43,20.58053112]
[1734964706806,1.3619,183.56,183.43,20.58053112]
[1734964707205,1.3619,183.56,183.44,20.58053112]
[1734964707427,1.3619,183.56,183.43,20.58053112]
[1734964707625,1.3619,183.56,183.42,20.58053112]
[1734964707828,1.3619,183.56,183.44,20.58053112]
[1734964708204,1.3619,183.56,183.43,20.58053112]
[1734964708426,1.3619,183.56,183.44,20.58053112]
[1734964708936,1.3616,183.6,183.49,20.58053112]
[1734964709132,1.3616,183.6,183.5,20.58053112]
[1734964709334,5.66447693,183.67,183.52,20.58053112]
[1734964709633,1.3614,183.64,183.52,20.58053112]
[1734964710728,1.3614,183.64,183.53,21.3975632]
[1734964710934,1.3614,183.64,183.54,20.58053112]
[1734964711829,6.4309,183.66,183.54,20.58053112]
[1734964712131,6.4309,183.66,183.56,20.58053112]
[1734964712506,6.4309,183.66,183.54,20.58053112]
[1734964712706,7.7921,183.66,183.53,20.58053112]
[1734964713134,0.12549,183.65,183.53,20.58053112]
[1734964713424,0.12549,183.65,183.54,20.58053112]
[1734964713630,0.12549,183.65,183.53,20.58053112]
[1734964714327,20.0,183.63,183.53,20.58053112]
[1734964714531,20.0,183.63,183.54,20.58053112]